fUSD/lending_fUSD_20240210
["ID","MTS","AMOUNT","RATE_DAILY","PERIOD"]
[313702674,1707597037866,-174.2467124,0.000317,2]
[313702675,1707597037875,-205.91243929,0.000317,6]
[313702676,1707597037884,-257.10945284,0.000317,2]
[313702677,1707597037894,-887.06290449,0.00031766,3]
[313702678,1707597037903,-226.56277154,0.00031799,2]
[313702679,1707597037911,-120076.44766107,0.000318,3]
[313702680,1707597037960,-1502.28437207,0.000318,3]
[313702681,1707597037972,-4324.98764311,0.000318,3]
[313702682,1707597037983,-316943.85621575,0.000318,3]
[313702683,1707597037992,-150.0,0.00031867,2]
[313702684,1707597038002,-13153.45698237,0.00032,4]
[313702685,1707597038011,-488.93006465,0.00032217,5]
[313702686,1707597038020,-151.0,0.00032302,30]
[313702687,1707597038029,-319.46,0.0003231,2]
[313702688,1707597038038,-2013.42,0.0003241,2]
[313702689,1707597038048,-150.0,0.00032444,2]
[313702690,1707597038060,-2717.7911,0.00032688,2]
[313702691,1707597038069,-152.84590356,0.00032708,2]
[313702692,1707597038078,-725.73,0.00032779,10]
[313702693,1707597038089,-16476.1919708,0.00032788,3]
[313702694,1707597038104,-6646.83400201,0.00032788,3]
[313702695,1707597038115,-326.95563948,0.00032788,3]
[313702696,1707597038125,-80591.78665922,0.00032788,7]
[313702697,1707597038136,-21248.90868349,0.00032788,7]
[313702698,1707597038147,-184.81257533,0.00032789,7]
[313702699,1707597038157,-387.57736408,0.00032789,7]
[313702700,1707597038167,-457.08715871,0.00032789,7]
[313702701,1707597038179,-500.0,0.00032789,7]
[313702702,1707597038189,-618.95319924,0.00032789,7]
[313702703,1707597038200,-150.1,0.00032877,2]
[313702704,1707597038216,-155.0,0.00032877,2]
[313702705,1707597038228,-1000.0,0.00032898,2]
[313702706,1707597038238,-1147.51307564,0.000329,2]
[313702707,1707597038252,-151.0,0.00032961,7]
[313702708,1707597038264,-492.57254288,0.00033,4]
[313702709,1707597038275,-1450.0,0.00033,3]
[313702710,1707597038287,-204.0,0.00033,2]
[313702711,1707597038298,-150.0,0.00033021,2]
[313702712,1707597038309,-870.88,0.00033072,10]
[313702713,1707597038320,-1600.268968,0.00033082,2]
[313702714,1707597038333,-153.9,0.000332,2]
[313702715,1707597038343,-153.9,0.000332,2]
[313702716,1707597038354,-153.9,0.000332,2]
[313702717,1707597038364,-153.9,0.000332,2]
[313702718,1707597038375,-153.9,0.000332,2]
[313702719,1707597038386,-153.9,0.000332,2]
[313702720,1707597038396,-533.19,0.00033358,10]
[313702721,1707597038407,-391.53,0.0003336,2]
[313702722,1707597038419,-887.06290449,0.00033368,5]
[313702723,1707597038430,-1600.268968,0.00033495,2]
[313702724,1707597038441,-725.93,0.000335,2]
[313702725,1707597038451,-725.93,0.000335,2]
[313702726,1707597038461,-725.93,0.000335,2]
[313702727,1707597038471,-725.93,0.000335,2]
[313702728,1707597038481,-725.93,0.000335,2]
[313702729,1707597038491,-725.93,0.000335,2]
[313702730,1707597038501,-725.93,0.000335,2]
[313702731,1707597038510,-725.93,0.000335,2]
[313702732,1707597038520,-725.93,0.000335,2]
[313702733,1707597038530,-725.93,0.000335,2]
[313702734,1707597038539,-725.93,0.000335,2]
[313702735,1707597038548,-725.93,0.000335,2]
[313702736,1707597038557,-725.93,0.000335,2]
[313702737,1707597038567,-725.93,0.000335,2]
[313702738,1707597038576,-725.93,0.000335,2]
[313702739,1707597038586,-725.93,0.000335,2]
[313702740,1707597038595,-725.93,0.000335,2]
[313702741,1707597038604,-725.93,0.000335,2]
[313702742,1707597038614,-725.93,0.000335,2]
[313702743,1707597038623,-725.93,0.000335,2]
[313702744,1707597038632,-604.77,0.00033588,10]
[313702745,1707597038641,-150.0,0.00033598,2]
[313702746,1707597038650,-535.965672,0.0003362,2]
[313702747,1707597038660,-151.0,0.00033634,4]
[313702748,1707597038669,-2013.42,0.0003382,2]
[313702749,1707597038679,-153.6570698,0.000339,2]
[313702750,1707597038689,-1600.268968,0.00033909,2]
[313702751,1707597038698,-767.10554147,0.00034,4]
[313702752,1707597038707,-1000.0,0.00034,2]
[313702753,1707597038718,-150.0,0.00034175,2]
[313702754,1707597038727,-155.0,0.00034247,2]
[313702755,1707597038737,-151.0,0.0003432,2]
[313702756,1707597038747,-1600.268968,0.00034322,2]
[313702757,1707597038756,-1439.61935585,0.00034457,5]
[313702758,1707597038766,-2077.78386965,0.00034457,5]
[313702759,1707597038775,-272.88558792,0.00034457,2]
[313702760,1707597038784,-362.03951463,0.00034457,2]
[313702761,1707597038793,-848.84637999,0.00034457,4]
[313702762,1707597038803,-526.81813762,0.00034457,5]
[313702763,1707597038812,-181.23333432,0.00034457,2]
[313702764,1707597038821,-308.71512774,0.00034457,5]
[313702765,1707597038830,-564.73647175,0.00034457,5]
[313702766,1707597038840,-353.90203701,0.00034457,5]
[313702767,1707597038849,-411.33221035,0.00034457,5]
[313702768,1707597038858,-173.98433508,0.00034457,4]
[313702769,1707597038867,-155.0,0.00034519,7]
[313702770,1707597038876,-1470.91479866,0.0003452,2]
[313702771,1707597038885,-10000.0,0.00034521,2]
[313702772,1707597038894,-488.93006465,0.00034732,7]
[313702773,1707597038904,-1600.268968,0.00034736,2]
[313702774,1707597038913,-150.0,0.00034751,2]
[313702775,1707597038923,-9013.93953825,0.000349,4]
[313702776,1707597038932,-2959.27971746,0.000349,2]
[313702777,1707597038942,-2959.27971745,0.000349,2]
[313702778,1707597038951,-2959.27971745,0.000349,2]
[313702779,1707597038961,-2959.27971745,0.000349,2]
[313702780,1707597038970,-2959.27971745,0.000349,2]
[313702781,1707597038979,-2959.27971745,0.000349,2]
[313702783,1707597038988,-2959.27971745,0.000349,2]
[313702785,1707597038997,-2959.27971745,0.000349,2]
[313702787,1707597039005,-2959.27971745,0.000349,2]
[313702788,1707597039015,-58000.0,0.00034931,3]
[313702789,1707597039023,-887.06290449,0.00034969,7]
[313702790,1707597039032,-155.0,0.00035,4]
[313702791,1707597039041,-40317.18644522,0.00035,4]
[313702792,1707597039050,-155.0,0.00035,2]
[313702793,1707597039059,-450.84278538,0.00035,4]
[313702794,1707597039068,-521.41384401,0.00035,14]
[313702795,1707597039077,-1500.0,0.00035,3]
[313702796,1707597039086,-165.08278709,0.00035,2]
[313702797,1707597039095,-165.08278709,0.00035,2]
[313702798,1707597039104,-165.08278709,0.00035,2]
[313702799,1707597039113,-165.08278709,0.00035,2]
[313702800,1707597039122,-165.08278709,0.00035,2]
[313702801,1707597039131,-300.0,0.00035,36]
[313702802,1707597039139,-2013.42,0.0003523,2]
[313702803,1707597039148,-150.0,0.00035328,2]
[313702804,1707597039157,-1500.0,0.000356,2]
[313702805,1707597039167,-2365.1,0.00035616,2]
[313702806,1707597039176,-7100.62,0.00035616,2]
[313702807,1707597039185,-155.0,0.00035617,2]
[313702808,1707597039194,-391.53,0.00035623,2]
[313702809,1707597039203,-174.24671238,0.0003569,2]
[313702810,1707597039213,-257.10945282,0.0003569,2]
[313702811,1707597039222,-10000.0,0.00035798,2]
[313702812,1707597039235,-725.93,0.000358,3]
[313702813,1707597039244,-725.93,0.000358,3]
[313702814,1707597039253,-725.93,0.000358,3]
[313702815,1707597039262,-725.93,0.000358,3]
[313702816,1707597039271,-725.93,0.000358,3]
[313702817,1707597039281,-725.93,0.000358,3]
[313702818,1707597039290,-725.93,0.000358,3]
[313702819,1707597039299,-725.93,0.000358,3]
[313702820,1707597039309,-725.93,0.000358,3]
[313702821,1707597039319,-725.93,0.000358,3]
[313702822,1707597039329,-725.93,0.000358,3]
[313702823,1707597039339,-725.93,0.000358,3]
[313702824,1707597039348,-725.93,0.000358,3]
[313702825,1707597039358,-725.93,0.000358,3]
[313702826,1707597039367,-725.93,0.000358,3]
[313702827,1707597039377,-725.93,0.000358,3]
[313702828,1707597039386,-725.93,0.000358,3]
[313702829,1707597039395,-725.93,0.000358,3]
[313702830,1707597039404,-725.93,0.000358,3]
[313702831,1707597039414,-725.93,0.000358,3]
[313702832,1707597039424,-1000.0,0.0003589,120]
[313702833,1707597039433,-150.0,0.00035905,2]
[313702834,1707597039442,-299.82335503,0.00036,4]
[313702835,1707597039451,-4000.0,0.00036,2]
[313702836,1707597039460,-1043.00809953,0.00036301,30]
[313702837,1707597039469,-2959.27971745,0.00036369,2]
[313702838,1707597039479,-153.9,0.000364,3]
[313702839,1707597039489,-153.9,0.000364,3]
[313702840,1707597039498,-153.9,0.000364,3]
[313702841,1707597039509,-153.9,0.000364,3]
[313702842,1707597039519,-153.9,0.000364,3]
[313702843,1707597039528,-153.9,0.000364,3]
[313702844,1707597039538,-150.0,0.00036482,2]
[313702845,1707597039548,-887.06290449,0.00036571,9]
[313702846,1707597039558,-2013.42,0.0003664,2]
[313702847,1707597039567,-1000.0,0.000367,2]
[313702848,1707597039577,-365.44973308,0.00036827,7]
[313702849,1707597039587,-365.44973308,0.00036867,7]
[313702850,1707597039596,-612.15512684,0.00036886,7]
[313702851,1707597039606,-167.49376479,0.00036973,7]
[313702852,1707597039615,-155.0,0.00036987,2]
[313702853,1707597039625,-4205.94905768,0.00037,14]
[313702854,1707597039635,-1550.0,0.00037,3]
[313702855,1707597039644,-150.0,0.00037059,2]
[313702856,1707597039653,-10000.0,0.00037075,2]
[313702857,1707597039662,-1000.0,0.0003711,2]
[313702858,1707597039671,-612.15512684,0.00037132,7]
[313702859,1707597039682,-156.59762891,0.00037183,7]
[313702860,1707597039691,-612.15512684,0.0003719,7]
[313702861,1707597039700,-612.15512684,0.00037222,7]
[313702862,1707597039709,-488.93006465,0.00037247,8]
[313702863,1707597039719,-155.97785463,0.00037299,7]
[313702864,1707597039728,-612.15512684,0.00037349,7]
[313702865,1707597039737,-1000.0,0.00037352,10]
[313702866,1707597039746,-1000.0,0.00037352,10]
[313702867,1707597039756,-209.65343491,0.00037588,2]
[313702868,1707597039765,-50000.0,0.00037598,15]
[313702869,1707597039774,-150.0,0.00037635,2]
[313702870,1707597039784,-612.15512684,0.00037757,7]
[313702871,1707597039793,-153.7803214,0.00037816,7]
[313702872,1707597039803,-391.53,0.00037887,2]
[313702873,1707597039813,-279968.63848454,0.000379,3]
[313702874,1707597042262,-500.0,0.00022331,2]
[313702875,1707597042273,-1076.10650313,0.00024511,2]
[313702876,1707597042287,-85.41449687,0.00024511,2]
[313702877,1707597042296,-150.0,0.00028562,2]
[313702878,1707597042307,-500.0,0.00028766,2]
[313702879,1707597042320,-500.0,0.00028766,2]
[313702880,1707597042330,-287.61694609,0.00028766,2]
[313702881,1707597042516,-212.38305391,0.00028766,2]
[313702882,1707597042526,-189.73994022,0.00028766,2]
[313702883,1707597042537,-310.26005978,0.00028766,2]
[313702884,1707597042547,-20.69994022,0.00028766,2]
[313702893,1707597043955,-479.30005978,0.00028766,2]
[313702894,1707597043964,-78.8177667,0.00028766,2]
[313702895,1707597043975,-421.1822333,0.00028766,2]
[313702896,1707597043984,-430.20825141,0.00028766,2]
[313702897,1707597043995,-69.79174859,0.00028766,2]
[313702898,1707597044004,-500.0,0.00028766,2]
[313702899,1707597044013,-500.0,0.00028766,2]
[313702900,1707597044022,-500.0,0.00028766,2]
[313702901,1707597044030,-500.0,0.00028766,2]
[313702902,1707597044039,-500.0,0.00028766,2]
[313702903,1707597044048,-500.0,0.00028766,2]
[313702904,1707597044057,-27.91514504,0.00028766,2]
[313702967,1707597046225,-1045.21041735,0.0002233,2]
[313702970,1707597046238,-152.84590356,0.00028479,2]
[313702973,1707597046247,-150.0,0.00028766,2]
[313702976,1707597046257,-472.08485496,0.00028766,2]
[313702979,1707597046266,-500.0,0.00028766,2]
[313702981,1707597046276,-500.0,0.00028766,2]
[313702983,1707597046286,-500.0,0.00028766,2]
[313702985,1707597046295,-500.0,0.00028766,2]
[313702987,1707597046305,-500.0,0.00028766,2]
[313702989,1707597046315,-444.85882413,0.00028766,2]
[313703046,1707597571156,173.94,0.00021374,2]
[313703055,1707598073450,-155.0,0.00025996,7]
[313703115,1707598206718,155.0,0.00024628,7]
[313703116,1707598226503,155.0,0.00024625,7]
[313703172,1707598234922,-276.9818,0.000224,2]
[313703174,1707598234931,-230.57244702,0.00022499,2]
[313703176,1707598234941,-150.0,0.00022499,2]
[313703178,1707598234950,-73.50408189,0.000225,2]
[313703180,1707598234962,-6910.20390425,0.000225,2]
[313703182,1707598234972,-231.35,0.000226,2]
[313703184,1707598234982,-512.93,0.00023158,2]
[313703186,1707598234991,-726.79,0.00023335,2]
[313703188,1707598235001,-736.01,0.00023598,2]
[313703190,1707598235010,-735.94,0.00023943,2]
[313703192,1707598235020,-202.08012209,0.00024,2]
[313703194,1707598235029,-500.0,0.00024457,2]
[313703196,1707598235038,-500.0,0.00024591,2]
[313703198,1707598235048,-155.0,0.00024626,2]
[313703200,1707598235057,-1061940.19368422,0.00024626,2]
[313703202,1707598235066,-359089.75869544,0.00024627,2]
[313703207,1707598235082,-2134.15596,0.00024627,2]
[313703214,1707598235111,-90769.79306461,0.00024627,2]
[313703217,1707598235121,-229.46176733,0.00024628,2]
[313703220,1707598235130,-23900.0,0.00024629,2]
[313703223,1707598235139,-250.0,0.00024629,2]
[313703226,1707598235148,-600.0,0.00024661,2]
[313703229,1707598235158,-18593.54,0.00024727,2]
[313703231,1707598235167,-199.0,0.00024749,2]
[313703234,1707598235177,-250.0,0.00024842,2]
[313703237,1707598235186,-157.35817099,0.00024899,2]
[313703240,1707598235195,-1186.25,0.00024979,2]
[313703243,1707598235205,-168.22521568,0.00025,2]
[313703245,1707598235214,-155.0,0.00025,2]
[313703247,1707598235225,-203.06443632,0.00025,2]
[313703250,1707598235234,-622.49852888,0.00025,2]
[313703252,1707598235244,-18705.30158929,0.00025,4]
[313703254,1707598235253,-1591.41795958,0.00025,2]
[313703256,1707598235262,-937.98396588,0.00025,2]
[313703258,1707598235272,-1908.91510247,0.00025,2]
[313703259,1707598235282,-305.01610739,0.00025,2]
[313703261,1707598235291,-697.48549167,0.00025,2]
[313703263,1707598235301,-512.93,0.00025422,2]
[313703265,1707598235310,-157.35817088,0.00025523,2]
[313703267,1707598235320,-163.92950636,0.00025892,2]
[313703269,1707598235330,-14478.8139,0.00025893,2]
[313703271,1707598235339,-162.97668823,0.00025894,2]
[313703273,1707598235349,-691.95051026,0.00025895,2]
[313703275,1707598235359,-321.5259,0.00025895,2]
[313703277,1707598235369,-1516.0337,0.00025895,2]
[313703279,1707598235379,-90274.7238,0.00025895,2]
[313703281,1707598235388,-187.12890915,0.00025981,2]
[313703283,1707598235398,-187.12890915,0.00025985,2]
[313703285,1707598235407,-499.99,0.00025988,2]
[313703287,1707598235416,-350034.95596366,0.00025991,2]
[313703289,1707598235429,-48806.13825003,0.00025991,2]
[313703290,1707598235439,-284.36846405,0.00025991,2]
[313703291,1707598235448,-48521.91714826,0.00025992,2]
[313703292,1707598235470,-335.6004098,0.00025992,2]
[313703293,1707598235482,-1093.1,0.00025992,2]
[313703294,1707598235511,-290.74301698,0.00025992,2]
[313703295,1707598235520,-54.33659702,0.00025992,2]
[313703310,1707598238495,-202.08012209,0.00024456,2]
[313703312,1707598238505,-300.0,0.00025498,2]
[313703314,1707598238514,-878.69340298,0.00025992,2]
[313703316,1707598238523,-511.82527856,0.00025996,2]
[313703318,1707598238533,-2606.90049886,0.00025996,2]
[313703320,1707598238543,-200.0,0.00025996,2]
[313703322,1707598238554,-937.3048118,0.00025998,2]
[313703324,1707598238567,-2829.0,0.00025999,2]
[313703326,1707598238576,-951.0,0.00025999,2]
[313703329,1707598238586,-840.0,0.00025999,2]
[313703332,1707598238596,-998.0,0.00025999,2]
[313703334,1707598238605,-235.0,0.00025999,2]
[313703336,1707598238614,-1764.817,0.00025999,2]
[313703338,1707598238624,-426.0,0.00025999,2]
[313703340,1707598238634,-150.0,0.00025999,2]
[313703342,1707598238643,-342.0,0.00025999,2]
[313703344,1707598238652,-19752.0,0.00025999,2]
[313703346,1707598238662,-2911.0,0.00025999,2]
[313703348,1707598238671,-7372.0,0.00025999,2]
[313703350,1707598238681,-2279.0,0.00025999,2]
[313703352,1707598238690,-8152.0,0.00025999,2]
[313703354,1707598238699,-1019.0,0.00025999,2]
[313703356,1707598238709,-1222.83,0.00026137,2]
[313703358,1707598238717,-200.0,0.00026141,2]
[313703360,1707598238727,-157.35817088,0.00026147,2]
[313703362,1707598238736,-250.0,0.0002618,2]
[313703364,1707598238746,-196.19,0.00026451,2]
[313703366,1707598238755,-260.8578,0.00026492,2]
[313703368,1707598238764,-22624.9084,0.00026492,2]
[313703370,1707598238774,-349.2,0.00026497,2]
[313703372,1707598238783,-196.19,0.00026523,2]
[313703374,1707598238792,-574.84,0.00026531,2]
[313703376,1707598238801,-196.19,0.00026596,2]
[313703378,1707598238810,-196.19,0.00026668,2]
[313703380,1707598238820,-400.0,0.00026739,2]
[313703382,1707598238829,-196.19,0.00026741,2]
[313703385,1707598238843,-157.35817088,0.00026772,2]
[313703387,1707598238852,-196.19,0.00026814,2]
[313703389,1707598238862,-300.0,0.00026867,2]
[313703391,1707598238871,-196.19,0.00026886,2]
[313703393,1707598238880,-196.19,0.00026959,2]
[313703395,1707598238890,-196.19,0.00027031,2]
[313703397,1707598238899,-196.19,0.00027104,2]
[313703399,1707598238908,-196.19,0.00027176,2]
[313703401,1707598238918,-150.0,0.00027184,2]
[313703403,1707598238928,-196.19,0.00027249,2]
[313703405,1707598238938,-196.19,0.00027321,2]
[313703407,1707598238949,-324.4968952,0.00027328,2]
[313703409,1707598238958,-196.19,0.00027394,2]
[313703411,1707598238968,-157.35817088,0.00027396,2]
[313703413,1707598238977,-155.0,0.00027397,2]
[313703415,1707598238987,-221.07088425,0.00027397,6]
[313703417,1707598238997,-4948.93,0.00027397,2]
[313703419,1707598239006,-500.0,0.000274,2]
[313703421,1707598239016,-349.2,0.00027434,2]
[313703423,1707598239025,-196.19,0.00027466,2]
[313703425,1707598239034,-196.19,0.00027539,2]
[313703427,1707598239044,-4948.93,0.00027556,2]
[313703429,1707598239053,-196.19,0.00027612,2]
[313703431,1707598239062,-196.19,0.00027684,2]
[313703433,1707598239073,-512.93,0.00027686,2]
[313703435,1707598239082,-4948.93,0.00027714,2]
[313703437,1707598239092,-600.0,0.00027744,2]
[313703439,1707598239102,-196.19,0.00027757,2]
[313703442,1707598239112,-1222.83,0.00027781,2]
[313703444,1707598239123,-196.19,0.00027829,2]
[313703446,1707598239135,-4948.93,0.00027872,2]
[313703448,1707598239144,-692.60049049,0.00028,2]
[313703450,1707598239155,-200.0,0.00028,2]
[313703452,1707598239165,-157.35817088,0.0002802,2]
[313703454,1707598239175,-4948.93,0.0002803,2]
[313703456,1707598239185,-2374.53,0.00028037,2]
[313703458,1707598239195,-208.11,0.00028081,2]
[313703460,1707598239205,-4948.93,0.00028189,2]
[313703462,1707598239215,-4948.93,0.00028347,2]
[313703465,1707598239226,-349.2,0.00028371,2]
[313703467,1707598239236,-1030.66260837,0.00028425,2]
[313703469,1707598239245,-4948.93,0.00028505,2]
[313703471,1707598239255,-3577.0,0.000286,2]
[313703473,1707598239265,-157.35817088,0.00028644,2]
[313703475,1707598239276,-500.0,0.00028662,2]
[313703477,1707598239286,-500.0,0.00028662,2]
[313703479,1707598239296,-500.0,0.00028662,2]
[313703481,1707598239306,-500.0,0.00028662,2]
[313703483,1707598239315,-500.0,0.00028662,2]
[313703485,1707598239326,-500.0,0.00028662,2]
[313703487,1707598239336,-500.0,0.00028662,2]
[313703489,1707598239346,-500.0,0.00028662,2]
[313703491,1707598239356,-500.0,0.00028662,2]
[313703493,1707598239366,-500.0,0.00028662,2]
[313703494,1707598239376,-500.0,0.00028662,2]
[313703495,1707598239386,-500.0,0.00028662,2]
[313703496,1707598239397,-500.0,0.00028662,2]
[313703497,1707598239407,-500.0,0.00028662,2]
[313703498,1707598239417,-500.0,0.00028662,2]
[313703499,1707598239427,-500.0,0.00028662,2]
[313703500,1707598239437,-500.0,0.00028662,2]
[313703501,1707598239447,-350.0,0.00028662,2]
[313703502,1707598239457,-500.0,0.00028662,2]
[313703503,1707598239468,-500.0,0.00028662,2]
[313703504,1707598239478,-500.0,0.00028662,2]
[313703505,1707598239488,-500.0,0.00028662,2]
[313703506,1707598239497,-500.0,0.00028662,2]
[313703507,1707598239507,-500.0,0.00028662,2]
[313703508,1707598239517,-500.0,0.00028662,2]
[313703510,1707598239527,-500.0,0.00028662,2]
[313703512,1707598239540,-500.0,0.00028662,2]
[313703515,1707598239553,-500.0,0.00028662,2]
[313703517,1707598239562,-500.0,0.00028662,2]
[313703519,1707598239574,-500.0,0.00028662,2]
[313703521,1707598239584,-500.0,0.00028662,2]
[313703523,1707598239594,-500.0,0.00028662,2]
[313703525,1707598239604,-500.0,0.00028662,2]
[313703527,1707598239615,-500.0,0.00028662,2]
[313703529,1707598239628,-500.0,0.00028662,2]
[313703531,1707598239639,-500.0,0.00028662,2]
[313703533,1707598239649,-500.0,0.00028662,2]
[313703536,1707598239658,-500.0,0.00028662,2]
[313703538,1707598239668,-500.0,0.00028662,2]
[313703540,1707598239678,-500.0,0.00028662,2]
[313703542,1707598239688,-500.0,0.00028662,2]
[313703544,1707598239698,-500.0,0.00028662,2]
[313703546,1707598239709,-500.0,0.00028662,2]
[313703548,1707598239719,-500.0,0.00028662,2]
[313703550,1707598239730,-500.0,0.00028662,2]
[313703552,1707598239740,-500.0,0.00028662,2]
[313703554,1707598239750,-500.0,0.00028662,2]
[313703556,1707598239760,-500.0,0.00028662,2]
[313703558,1707598239770,-500.0,0.00028662,2]
[313703560,1707598239780,-500.0,0.00028662,2]
[313703562,1707598239790,-500.0,0.00028662,2]
[313703564,1707598239800,-500.0,0.00028662,2]
[313703567,1707598239810,-500.0,0.00028662,2]
[313703569,1707598239820,-500.0,0.00028662,2]
[313703571,1707598239829,-500.0,0.00028662,2]
[313703574,1707598239851,-500.0,0.00028662,2]
[313703576,1707598239862,-500.0,0.00028662,2]
[313703579,1707598239873,-500.0,0.00028662,2]
[313703581,1707598239884,-500.0,0.00028662,2]
[313703583,1707598239894,-500.0,0.00028662,2]
[313703585,1707598239905,-500.0,0.00028662,2]
[313703587,1707598239915,-500.0,0.00028662,2]
[313703589,1707598239926,-500.0,0.00028662,2]
[313703591,1707598239936,-500.0,0.00028662,2]
[313703594,1707598239946,-500.0,0.00028662,2]
[313703596,1707598239957,-500.0,0.00028662,2]
[313703598,1707598239970,-500.0,0.00028662,2]
[313703600,1707598239980,-500.0,0.00028662,2]
[313703602,1707598239990,-500.0,0.00028662,2]
[313703604,1707598240000,-500.0,0.00028662,2]
[313703606,1707598240011,-500.0,0.00028662,2]
[313703608,1707598240021,-500.0,0.00028662,2]
[313703611,1707598240031,-500.0,0.00028662,2]
[313703613,1707598240042,-500.0,0.00028662,2]
[313703615,1707598240052,-500.0,0.00028662,2]
[313703617,1707598240062,-500.0,0.00028662,2]
[313703619,1707598240073,-500.0,0.00028662,2]
[313703621,1707598240084,-300.0,0.00028662,2]
[313703623,1707598240094,-500.0,0.00028662,2]
[313703625,1707598240104,-500.0,0.00028662,2]
[313703628,1707598240114,-500.0,0.00028662,2]
[313703630,1707598240125,-500.0,0.00028662,2]
[313703632,1707598240135,-500.0,0.00028662,2]
[313703634,1707598240144,-500.0,0.00028662,2]
[313703636,1707598240155,-500.0,0.00028662,2]
[313703638,1707598240165,-500.0,0.00028662,2]
[313703640,1707598240175,-500.0,0.00028662,2]
[313703642,1707598240185,-500.0,0.00028662,2]
[313703645,1707598240195,-500.0,0.00028662,2]
[313703647,1707598240205,-500.0,0.00028662,2]
[313703649,1707598240216,-500.0,0.00028662,2]
[313703651,1707598240227,-500.0,0.00028662,2]
[313703653,1707598240237,-500.0,0.00028662,2]
[313703655,1707598240247,-500.0,0.00028662,2]
[313703657,1707598240257,-500.0,0.00028662,2]
[313703659,1707598240268,-500.0,0.00028662,2]
[313703661,1707598240277,-500.0,0.00028662,2]
[313703663,1707598240287,-500.0,0.00028662,2]
[313703666,1707598240297,-500.0,0.00028662,2]
[313703668,1707598240307,-500.0,0.00028662,2]
[313703670,1707598240317,-500.0,0.00028662,2]
[313703672,1707598240327,-500.0,0.00028662,2]
[313703674,1707598240336,-500.0,0.00028662,2]
[313703676,1707598240346,-500.0,0.00028662,2]
[313703678,1707598240356,-500.0,0.00028662,2]
[313703680,1707598240366,-500.0,0.00028662,2]
[313703682,1707598240376,-500.0,0.00028662,2]
[313703684,1707598240385,-500.0,0.00028662,2]
[313703686,1707598240395,-246.51584777,0.00028662,2]
[313703691,1707598240479,-253.48415223,0.00028662,2]
[313703692,1707598240488,-500.0,0.00028662,2]
[313703693,1707598240498,-106.08167747,0.00028662,2]
[313703694,1707598241108,-171.23,0.00024128,2]
[313703695,1707598241122,-393.91832253,0.00028662,2]
[313703696,1707598241133,-500.0,0.00028662,2]
[313703697,1707598241143,-500.0,0.00028662,2]
[313703698,1707598241154,-500.0,0.00028662,2]
[313703699,1707598241165,-500.0,0.00028662,2]
[313703700,1707598241175,-500.0,0.00028662,2]
[313703701,1707598241185,-500.0,0.00028662,2]
[313703702,1707598241196,-500.0,0.00028662,2]
[313703703,1707598241206,-500.0,0.00028662,2]
[313703704,1707598241217,-500.0,0.00028662,2]
[313703705,1707598241228,-500.0,0.00028662,2]
[313703706,1707598241238,-500.0,0.00028662,2]
[313703707,1707598241248,-500.0,0.00028662,2]
[313703708,1707598241258,-500.0,0.00028662,2]
[313703709,1707598241268,-500.0,0.00028662,2]
[313703710,1707598241278,-500.0,0.00028662,2]